[Event "*** Titled Tuesday Blitz"]
[Site "Chess.com"]
[Date "2020.05.26"]
[Round "2"]
[White "MergenKakabaev"]
[Black "barbara25"]
[Result "0-1"]
[WhiteElo "2409"]
[BlackElo "2210"]
[TimeControl "180+1"]
[EndTime "10:18:57 PDT"]
[Termination "barbara25 won on time"]

1. e4 {[%clk 0:03:00]} 1... c5 {[%clk 0:02:59.4]} 2. Nf3 {[%clk 0:02:59.9]} 2...
d6 {[%clk 0:02:59.4]} 3. d4 {[%clk 0:02:59.3]} 3... cxd4 {[%clk 0:02:59.6]} 4.
Nxd4 {[%clk 0:03:00.1]} 4... Nf6 {[%clk 0:02:59.8]} 5. Nc3 {[%clk 0:02:59.1]}
5... a6 {[%clk 0:02:59.9]} 6. Bg5 {[%clk 0:02:57.6]} 6... e6 {[%clk 0:02:59.7]}
7. f4 {[%clk 0:02:57.2]} 7... Qb6 {[%clk 0:02:57.2]} 8. Qd2 {[%clk 0:02:53.3]}
8... Nc6 {[%clk 0:02:54.6]} 9. O-O-O {[%clk 0:02:50.7]} 9... Nxd4 {[%clk
0:02:54.3]} 10. Qxd4 {[%clk 0:02:51.4]} 10... Qxd4 {[%clk 0:02:54.9]} 11. Rxd4
{[%clk 0:02:52.3]} 11... Be7 {[%clk 0:02:55.2]} 12. e5 {[%clk 0:02:47.2]} 12...
dxe5 {[%clk 0:02:53.5]} 13. fxe5 {[%clk 0:02:48.1]} 13... Nd7 {[%clk 0:02:52.8]}
14. Bxe7 {[%clk 0:02:47.3]} 14... Kxe7 {[%clk 0:02:52.3]} 15. Re4 {[%clk
0:02:19.2]} 15... b5 {[%clk 0:02:51.6]} 16. a3 {[%clk 0:02:15.2]} 16... Bb7
{[%clk 0:02:51.5]} 17. Re3 {[%clk 0:02:15.6]} 17... Rhd8 {[%clk 0:02:47.8]} 18.
Be2 {[%clk 0:02:14.9]} 18... Nb6 {[%clk 0:02:47.5]} 19. Bf3 {[%clk 0:02:13]}
19... Rab8 {[%clk 0:02:38]} 20. Bxb7 {[%clk 0:02:10.3]} 20... Rxb7 {[%clk
0:02:37.6]} 21. Rf1 {[%clk 0:02:03.3]} 21... Kf8 {[%clk 0:02:26.3]} 22. b3
{[%clk 0:01:55.1]} 22... Nd5 {[%clk 0:02:19.5]} 23. Rd3 {[%clk 0:01:46.8]} 23...
Rbd7 {[%clk 0:02:18.6]} 24. Rfd1 {[%clk 0:01:45.5]} 24... Ke7 {[%clk 0:02:16.4]}
25. Ne4 {[%clk 0:01:30.8]} 25... Nf4 {[%clk 0:01:54.7]} 26. Rxd7+ {[%clk
0:01:28]} 26... Rxd7 {[%clk 0:01:54.8]} 27. Rxd7+ {[%clk 0:01:28.9]} 27... Kxd7
{[%clk 0:01:54.6]} 28. Nc5+ {[%clk 0:01:29.8]} 28... Kc6 {[%clk 0:01:54.5]} 29.
Nxa6 {[%clk 0:01:30.7]} 29... Nxg2 {[%clk 0:01:53.5]} 30. Kd2 {[%clk 0:01:20.9]}
30... f6 {[%clk 0:01:52.1]} 31. exf6 {[%clk 0:01:16.2]} 31... gxf6 {[%clk
0:01:51.8]} 32. Nb4+ {[%clk 0:01:17.1]} 32... Kb6 {[%clk 0:01:49.7]} 33. Nd3
{[%clk 0:01:06.1]} 33... e5 {[%clk 0:01:45.1]} 34. a4 {[%clk 0:01:01.8]} 34...
bxa4 {[%clk 0:01:44.4]} 35. bxa4 {[%clk 0:01:02.7]} 35... Ka5 {[%clk 0:01:44.2]}
36. Nc5 {[%clk 0:00:36.8]} 36... Nf4 {[%clk 0:01:36.9]} 37. Ke3 {[%clk
0:00:30.7]} 37... Nh5 {[%clk 0:01:30.9]} 38. Ke4 {[%clk 0:00:29.3]} 38... Kb4
{[%clk 0:01:27.6]} 39. Nd7 {[%clk 0:00:28.2]} 39... Kxa4 {[%clk 0:01:26.6]} 40.
c4 {[%clk 0:00:28.2]} 40... Kb4 {[%clk 0:01:26]} 41. c5 {[%clk 0:00:28.2]} 41...
Kb5 {[%clk 0:01:25.7]} 42. Kd5 {[%clk 0:00:26.5]} 42... Nf4+ {[%clk 0:01:04.8]}
43. Kd6 {[%clk 0:00:25.1]} 43... e4 {[%clk 0:00:58.6]} 44. c6 {[%clk 0:00:24]}
44... e3 {[%clk 0:00:58.4]} 45. c7 {[%clk 0:00:24.1]} 45... e2 {[%clk
0:00:58.4]} 46. c8=Q {[%clk 0:00:21.6]} 46... e1=Q {[%clk 0:00:56]} 47. Qb7+
{[%clk 0:00:21.6]} 47... Kc4 {[%clk 0:00:51.1]} 48. Qa6+ {[%clk 0:00:14.7]}
48... Kd4 {[%clk 0:00:47.8]} 49. Qb6+ {[%clk 0:00:06.2]} 49... Kd3 {[%clk
0:00:42.7]} 50. Qb3+ {[%clk 0:00:05.5]} 50... Ke2 {[%clk 0:00:37]} 51. Nxf6
{[%clk 0:00:01.7]} 51... Qd2+ {[%clk 0:00:33.8]} 52. Ke7 {[%clk 0:00:02]} 52...
Qe3+ {[%clk 0:00:18.8]} 0-1

[Event "*** Titled Tuesday Blitz"]
[Site "Chess.com"]
[Date "2020.05.26"]
[Round "2"]
[White "AGW2016"]
[Black "KaterinaMiroshnik"]
[Result "1-0"]
[WhiteElo "2219"]
[BlackElo "2416"]
[TimeControl "180+1"]
[EndTime "10:18:58 PDT"]
[Termination "AGW2016 won by resignation"]

1. e4 {[%clk 0:03:00.9]} 1... e6 {[%clk 0:02:59.9]} 2. d4 {[%clk 0:03:00.8]}
2... d5 {[%clk 0:03:00.8]} 3. exd5 {[%clk 0:03:01.7]} 3... exd5 {[%clk
0:03:00.1]} 4. Nf3 {[%clk 0:03:02.3]} 4... Nf6 {[%clk 0:02:59.6]} 5. Bd3 {[%clk
0:03:02.2]} 5... Bd6 {[%clk 0:02:59.9]} 6. O-O {[%clk 0:03:02.3]} 6... O-O
{[%clk 0:02:59.6]} 7. c4 {[%clk 0:03:02.7]} 7... c6 {[%clk 0:02:59.4]} 8. Bg5
{[%clk 0:03:02.8]} 8... Nbd7 {[%clk 0:02:58.2]} 9. Nc3 {[%clk 0:03:02.5]} 9...
Be7 {[%clk 0:02:54.3]} 10. Re1 {[%clk 0:03:00.3]} 10... Re8 {[%clk 0:02:52.4]}
11. Qc2 {[%clk 0:02:56]} 11... h6 {[%clk 0:02:49.6]} 12. Bh4 {[%clk 0:02:51.5]}
12... dxc4 {[%clk 0:02:47]} 13. Bxc4 {[%clk 0:02:48.8]} 13... Nb6 {[%clk
0:02:46.8]} 14. Bb3 {[%clk 0:02:48.7]} 14... Nbd5 {[%clk 0:02:41.1]} 15. Ne5
{[%clk 0:02:48]} 15... Be6 {[%clk 0:02:38.1]} 16. Rad1 {[%clk 0:02:47.6]} 16...
a5 {[%clk 0:02:33.3]} 17. a3 {[%clk 0:02:35.5]} 17... Qc8 {[%clk 0:02:21.7]} 18.
Na4 {[%clk 0:01:37.4]} 18... b5 {[%clk 0:02:00.5]} 19. Nc5 {[%clk 0:01:36.8]}
19... Bf5 {[%clk 0:01:56.4]} 20. Qc1 {[%clk 0:01:30.1]} 20... a4 {[%clk
0:01:54.4]} 21. Ba2 {[%clk 0:01:26.5]} 21... Nd7 {[%clk 0:01:41.3]} 22. Bxe7
{[%clk 0:01:08.2]} 22... Rxe7 {[%clk 0:01:36]} 23. Nexd7 {[%clk 0:01:06.2]}
23... Rxe1+ {[%clk 0:01:34.5]} 24. Rxe1 {[%clk 0:01:06.7]} 24... Bxd7 {[%clk
0:01:34.7]} 25. Bxd5 {[%clk 0:01:04.4]} 25... cxd5 {[%clk 0:01:33.5]} 26. Re7
{[%clk 0:01:04.7]} 26... Be8 {[%clk 0:01:31]} 27. Qe3 {[%clk 0:01:03.5]} 27...
Qd8 {[%clk 0:01:28]} 28. h3 {[%clk 0:01:01.6]} 28... Kf8 {[%clk 0:01:26.4]} 29.
Rb7 {[%clk 0:00:56]} 29... Qd6 {[%clk 0:01:22.5]} 30. Qf3 {[%clk 0:00:42.8]}
30... Rc8 {[%clk 0:01:16]} 31. Qf5 {[%clk 0:00:38.4]} 31... Rd8 {[%clk
0:01:07.2]} 32. Qh7 {[%clk 0:00:34.2]} 32... Bd7 {[%clk 0:01:05.5]} 33. Qh8+
{[%clk 0:00:20.8]} 33... Ke7 {[%clk 0:01:05.4]} 34. Qxg7 {[%clk 0:00:21.5]}
34... Qc6 {[%clk 0:01:01.3]} 35. Rxd7+ {[%clk 0:00:20]} 35... Rxd7 {[%clk
0:01:02.2]} 36. Nxd7 {[%clk 0:00:20.9]} 36... Qxd7 {[%clk 0:00:55.5]} 37. Qxh6
{[%clk 0:00:21.5]} 37... Qf5 {[%clk 0:00:54.3]} 38. Qd2 {[%clk 0:00:21.6]} 38...
Qb1+ {[%clk 0:00:53.7]} 39. Kh2 {[%clk 0:00:21.4]} 39... Qf5 {[%clk 0:00:53.8]}
40. g3 {[%clk 0:00:21.1]} 40... Kd7 {[%clk 0:00:53.4]} 41. h4 {[%clk 0:00:19.5]}
41... Qf3 {[%clk 0:00:53.1]} 42. Qe3 {[%clk 0:00:19]} 42... Qg4 {[%clk
0:00:52.5]} 43. Kg2 {[%clk 0:00:19]} 43... Kc6 {[%clk 0:00:49.2]} 44. Qf3 {[%clk
0:00:19.4]} 44... Qe6 {[%clk 0:00:48.2]} 45. Qc3+ {[%clk 0:00:18]} 45... Kb7
{[%clk 0:00:47.3]} 46. Qe3 {[%clk 0:00:18.7]} 46... Qd6 {[%clk 0:00:46.6]} 47.
h5 {[%clk 0:00:18.9]} 47... Qf6 {[%clk 0:00:46.1]} 48. h6 {[%clk 0:00:19.3]}
48... Qg6 {[%clk 0:00:45.5]} 49. Kh2 {[%clk 0:00:16.9]} 49... Kb6 {[%clk
0:00:45.2]} 50. f3 {[%clk 0:00:16.9]} 50... Ka5 {[%clk 0:00:45]} 51. g4 {[%clk
0:00:17.3]} 51... f6 {[%clk 0:00:43.7]} 52. Kg3 {[%clk 0:00:17.6]} 52... f5
{[%clk 0:00:42.6]} 53. g5 {[%clk 0:00:17.7]} 53... Qh5 {[%clk 0:00:42.1]} 54.
Qf4 {[%clk 0:00:15]} 54... Qh1 {[%clk 0:00:41.2]} 55. g6 {[%clk 0:00:14.5]}
55... Qg1+ {[%clk 0:00:41.1]} 56. Kh4 {[%clk 0:00:15]} 56... Qxg6 {[%clk
0:00:41.2]} 57. Kh3 {[%clk 0:00:13.8]} 57... Qh5+ {[%clk 0:00:40]} 58. Kg3
{[%clk 0:00:14]} 58... Qg6+ {[%clk 0:00:39.5]} 59. Kf2 {[%clk 0:00:14.6]} 59...
Ka6 {[%clk 0:00:39.4]} 60. Ke3 {[%clk 0:00:14.2]} 60... Qe6+ {[%clk 0:00:39.2]}
61. Kd3 {[%clk 0:00:14.8]} 61... Qc6 {[%clk 0:00:38.2]} 62. Qxf5 {[%clk
0:00:13.4]} 62... Qxh6 {[%clk 0:00:36.8]} 63. Qxd5 {[%clk 0:00:13.9]} 63... Qg6+
{[%clk 0:00:36.3]} 64. Qe4 {[%clk 0:00:13.7]} 64... Qd6 {[%clk 0:00:35.9]} 65.
d5 {[%clk 0:00:14.2]} 65... Qc7 {[%clk 0:00:35.7]} 66. Qe6+ {[%clk 0:00:14.4]}
66... Ka5 {[%clk 0:00:35.4]} 67. d6 {[%clk 0:00:15]} 67... Qc6 {[%clk 0:00:34]}
68. Qe1+ {[%clk 0:00:14.4]} 68... Ka6 {[%clk 0:00:33.6]} 69. Qe5 {[%clk
0:00:14]} 69... Qc4+ {[%clk 0:00:33.2]} 70. Ke3 {[%clk 0:00:14.7]} 70... Qb3+
{[%clk 0:00:32.8]} 71. Kf4 {[%clk 0:00:14.2]} 71... Qd1 {[%clk 0:00:32.8]} 72.
Ke4 {[%clk 0:00:12.6]} 72... Qe2+ {[%clk 0:00:32.4]} 73. Kf4 {[%clk 0:00:12.5]}
73... Qd2+ {[%clk 0:00:32.6]} 74. Kf5 {[%clk 0:00:12.5]} 74... Qd3+ {[%clk
0:00:32.1]} 75. Ke6 {[%clk 0:00:11.4]} 75... Qxf3 {[%clk 0:00:29.5]} 76. d7
{[%clk 0:00:11.7]} 76... Qg4+ {[%clk 0:00:29.6]} 77. Ke7 {[%clk 0:00:11.8]}
77... Qh4+ {[%clk 0:00:28.4]} 78. Qf6+ {[%clk 0:00:12.1]} 78... Qxf6+ {[%clk
0:00:28.2]} 79. Kxf6 {[%clk 0:00:13]} 1-0

[Event "*** Titled Tuesday Blitz"]
[Site "Chess.com"]
[Date "2020.05.26"]
[Round "2"]
[White "plumalka"]
[Black "AlanZhang"]
[Result "0-1"]
[WhiteElo "2429"]
[BlackElo "2237"]
[TimeControl "180+1"]
[EndTime "10:18:59 PDT"]
[Termination "AlanZhang won by resignation"]

1. e4 {[%clk 0:03:00.9]} 1... e5 {[%clk 0:02:34.6]} 2. Nf3 {[%clk 0:03:00]} 2...
Nc6 {[%clk 0:02:35]} 3. Nc3 {[%clk 0:03:00.3]} 3... Nf6 {[%clk 0:02:34.4]} 4. a3
{[%clk 0:03:00.7]} 4... Be7 {[%clk 0:02:31.7]} 5. d4 {[%clk 0:02:59.3]} 5...
exd4 {[%clk 0:02:30.8]} 6. Nxd4 {[%clk 0:03:00.2]} 6... d6 {[%clk 0:02:31]} 7.
Be2 {[%clk 0:02:57.6]} 7... O-O {[%clk 0:02:29.8]} 8. O-O {[%clk 0:02:56.8]}
8... h6 {[%clk 0:02:24.6]} 9. Be3 {[%clk 0:02:55.9]} 9... Re8 {[%clk 0:02:24]}
10. h3 {[%clk 0:02:51.7]} 10... Bf8 {[%clk 0:02:23.2]} 11. Bf3 {[%clk
0:02:44.1]} 11... Ne5 {[%clk 0:02:19.2]} 12. Be2 {[%clk 0:02:39.4]} 12... Nc6
{[%clk 0:02:18]} 13. f3 {[%clk 0:02:32.8]} 13... g6 {[%clk 0:02:09.9]} 14. Qd2
{[%clk 0:02:30.8]} 14... Kh7 {[%clk 0:02:07.1]} 15. Rad1 {[%clk 0:02:29.7]}
15... Bg7 {[%clk 0:02:06]} 16. Bc4 {[%clk 0:02:24.4]} 16... Nxd4 {[%clk
0:01:51.9]} 17. Bxd4 {[%clk 0:02:23.9]} 17... Be6 {[%clk 0:01:52.2]} 18. Bd3
{[%clk 0:02:18.2]} 18... a6 {[%clk 0:00:50.6]} 19. f4 {[%clk 0:02:08.4]} 19...
c5 {[%clk 0:00:41.6]} 20. Bf2 {[%clk 0:02:04.1]} 20... Bd7 {[%clk 0:00:34.4]}
21. Rde1 {[%clk 0:02:00.3]} 21... Bc6 {[%clk 0:00:33.9]} 22. e5 {[%clk
0:01:38.2]} 22... dxe5 {[%clk 0:00:33.5]} 23. fxe5 {[%clk 0:01:39.1]} 23... Nd7
{[%clk 0:00:32.2]} 24. Bg3 {[%clk 0:01:33.9]} 24... Nxe5 {[%clk 0:00:26.4]} 25.
Bxe5 {[%clk 0:01:27.2]} 25... Rxe5 {[%clk 0:00:25.9]} 26. Rxe5 {[%clk
0:01:18.7]} 26... Qd4+ {[%clk 0:00:24.2]} 27. Re3 {[%clk 0:01:13.3]} 27... Re8
{[%clk 0:00:10.7]} 28. Re1 {[%clk 0:01:04.1]} 28... c4 {[%clk 0:00:10.7]} 29.
Kh1 {[%clk 0:00:55.2]} 29... Rxe3 {[%clk 0:00:08.4]} 30. Qxe3 {[%clk 0:00:51.3]}
30... cxd3 {[%clk 0:00:07.5]} 31. Qxd4 {[%clk 0:00:46]} 31... Bxd4 {[%clk
0:00:08.4]} 32. cxd3 {[%clk 0:00:46.4]} 32... Kg7 {[%clk 0:00:06.6]} 33. Kh2
{[%clk 0:00:44.2]} 33... b5 {[%clk 0:00:06.6]} 34. Kg3 {[%clk 0:00:42.8]} 34...
a5 {[%clk 0:00:06.5]} 35. Nd1 {[%clk 0:00:28.3]} 35... b4 {[%clk 0:00:05.2]} 36.
axb4 {[%clk 0:00:28]} 36... axb4 {[%clk 0:00:06.1]} 37. Re2 {[%clk 0:00:28]}
37... Kf6 {[%clk 0:00:05.5]} 38. Ne3 {[%clk 0:00:27.8]} 38... Be5+ {[%clk
0:00:03.9]} 39. Kf2 {[%clk 0:00:27.9]} 39... h5 {[%clk 0:00:04.1]} 40. Nc4
{[%clk 0:00:28]} 40... Bd4+ {[%clk 0:00:04.3]} 41. Ke1 {[%clk 0:00:27.5]} 41...
h4 {[%clk 0:00:03.5]} 42. Ne3 {[%clk 0:00:26.6]} 42... g5 {[%clk 0:00:02.5]} 43.
Ng4+ {[%clk 0:00:26.5]} 43... Kf5 {[%clk 0:00:02.8]} 44. Nh6+ {[%clk 0:00:26.5]}
44... Kg6 {[%clk 0:00:02.8]} 45. Ng4 {[%clk 0:00:26.6]} 45... f5 {[%clk
0:00:02.4]} 46. Ne5+ {[%clk 0:00:26.6]} 46... Bxe5 {[%clk 0:00:03]} 47. Rxe5
{[%clk 0:00:27.2]} 47... Bxg2 {[%clk 0:00:03.2]} 48. Re6+ {[%clk 0:00:27.1]}
48... Kh5 {[%clk 0:00:02.9]} 49. Re3 {[%clk 0:00:26.8]} 49... g4 {[%clk
0:00:03.4]} 50. Kf2 {[%clk 0:00:22.9]} 50... Bxh3 {[%clk 0:00:03.3]} 51. Re5
{[%clk 0:00:22.4]} 51... g3+ {[%clk 0:00:03.1]} 52. Kg1 {[%clk 0:00:22.5]} 52...
Kg5 {[%clk 0:00:03.1]} 53. d4 {[%clk 0:00:21.7]} 53... Kf4 {[%clk 0:00:01.6]}
54. Re8 {[%clk 0:00:21]} 54... g2 {[%clk 0:00:01.4]} 55. d5 {[%clk 0:00:21.3]}
55... Kf3 {[%clk 0:00:01.7]} 56. d6 {[%clk 0:00:21.4]} 56... f4 {[%clk
0:00:02.2]} 57. d7 {[%clk 0:00:21.6]} 57... Bxd7 {[%clk 0:00:01.5]} 58. Rd8
{[%clk 0:00:21]} 58... h3 {[%clk 0:00:02]} 59. Rxd7 {[%clk 0:00:20.3]} 59... Kg3
{[%clk 0:00:01.6]} 60. Rg7+ {[%clk 0:00:19.6]} 60... Kf3 {[%clk 0:00:02.1]} 61.
Kh2 {[%clk 0:00:19.3]} 61... Kf2 {[%clk 0:00:02]} 62. Rg6 {[%clk 0:00:16.4]}
62... f3 {[%clk 0:00:02.5]} 63. b3 {[%clk 0:00:16.4]} 63... Kf1 {[%clk
0:00:02.6]} 64. Rg5 {[%clk 0:00:16.6]} 64... f2 {[%clk 0:00:02.8]} 65. Re5
{[%clk 0:00:15.4]} 65... g1=Q+ {[%clk 0:00:02.9]} 66. Kxh3 {[%clk 0:00:15.8]}
66... Qh1+ {[%clk 0:00:02.6]} 67. Kg4 {[%clk 0:00:16.2]} 67... Qg2+ {[%clk
0:00:03.1]} 68. Kf4 {[%clk 0:00:16.5]} 68... Kg1 {[%clk 0:00:03.7]} 69. Rg5
{[%clk 0:00:16.3]} 69... f1=Q+ {[%clk 0:00:04]} 70. Ke3 {[%clk 0:00:16.1]} 70...
Qxg5+ {[%clk 0:00:04.6]} 0-1

[Event "*** Titled Tuesday Blitz"]
[Site "Chess.com"]
[Date "2020.05.26"]
[Round "2"]
[White "vinniethepooh"]
[Black "Sam_ChessMood"]
[Result "1-0"]
[WhiteElo "2569"]
[BlackElo "2861"]
[TimeControl "180+1"]
[EndTime "10:19:01 PDT"]
[Termination "vinniethepooh won by resignation"]

1. Nf3 {[%clk 0:03:00.9]} 1... d5 {[%clk 0:02:59.2]} 2. g3 {[%clk 0:03:01.1]}
2... g6 {[%clk 0:02:59.6]} 3. Bg2 {[%clk 0:03:01.4]} 3... Bg7 {[%clk 0:02:59.7]}
4. O-O {[%clk 0:03:01.4]} 4... e5 {[%clk 0:02:59.8]} 5. d3 {[%clk 0:03:01.1]}
5... Ne7 {[%clk 0:03:00.1]} 6. Nbd2 {[%clk 0:03:00.2]} 6... O-O {[%clk
0:02:57.8]} 7. e4 {[%clk 0:03:00.6]} 7... d4 {[%clk 0:02:57.8]} 8. Qe2 {[%clk
0:02:56.5]} 8... c5 {[%clk 0:02:57.5]} 9. c3 {[%clk 0:02:48.6]} 9... Nbc6 {[%clk
0:02:57.5]} 10. Nb3 {[%clk 0:02:46.2]} 10... b6 {[%clk 0:02:50.8]} 11. cxd4
{[%clk 0:02:43.4]} 11... cxd4 {[%clk 0:02:48.3]} 12. Bd2 {[%clk 0:02:42.2]}
12... a5 {[%clk 0:02:39.1]} 13. a4 {[%clk 0:02:39]} 13... Be6 {[%clk 0:02:36.3]}
14. Ra3 {[%clk 0:02:35.7]} 14... h6 {[%clk 0:02:33.4]} 15. Rc1 {[%clk
0:02:34.1]} 15... Qd7 {[%clk 0:02:28.1]} 16. Ne1 {[%clk 0:02:22.5]} 16... Rac8
{[%clk 0:02:14.9]} 17. Na1 {[%clk 0:01:58.8]} 17... Rc7 {[%clk 0:02:03.4]} 18.
h4 {[%clk 0:01:53.6]} 18... Rfc8 {[%clk 0:01:57.7]} 19. Kh2 {[%clk 0:01:51.9]}
19... Nb4 {[%clk 0:01:55.2]} 20. Rxc7 {[%clk 0:01:48.7]} 20... Rxc7 {[%clk
0:01:54.7]} 21. Qd1 {[%clk 0:01:45.9]} 21... Nec6 {[%clk 0:01:48.9]} 22. Nac2
{[%clk 0:01:41.8]} 22... Bf8 {[%clk 0:01:47.1]} 23. Nxb4 {[%clk 0:01:38.9]}
23... Nxb4 {[%clk 0:01:41.8]} 24. Ra1 {[%clk 0:01:36.7]} 24... Na6 {[%clk
0:01:24.4]} 25. Rc1 {[%clk 0:01:22.5]} 25... Nc5 {[%clk 0:01:23.9]} 26. b4
{[%clk 0:01:21.8]} 26... axb4 {[%clk 0:01:14.8]} 27. Bxb4 {[%clk 0:01:22.7]}
27... Bb3 {[%clk 0:01:14.1]} 28. Qd2 {[%clk 0:01:06.5]} 28... Bxa4 {[%clk
0:00:57.5]} 29. Qa2 {[%clk 0:00:50.3]} 29... Bb5 {[%clk 0:00:52.4]} 30. Bh3
{[%clk 0:00:42.5]} 30... Qd8 {[%clk 0:00:48.1]} 31. h5 {[%clk 0:00:37.2]} 31...
g5 {[%clk 0:00:43.8]} 32. Bf5 {[%clk 0:00:22.7]} 32... Bd7 {[%clk 0:00:30.3]}
33. Qd5 {[%clk 0:00:18.4]} 33... Qe8 {[%clk 0:00:27.1]} 34. Bxd7 {[%clk
0:00:16.3]} 34... Rxd7 {[%clk 0:00:25.3]} 35. Qc6 {[%clk 0:00:16.7]} 35... Qe6
{[%clk 0:00:19.3]} 36. Qxe6 {[%clk 0:00:16.1]} 36... Nxe6 {[%clk 0:00:19.1]} 37.
Bxf8 {[%clk 0:00:11.8]} 37... Kxf8 {[%clk 0:00:19]} 38. Nf3 {[%clk 0:00:12.3]}
38... b5 {[%clk 0:00:12.2]} 39. Nxe5 {[%clk 0:00:12.2]} 39... Rb7 {[%clk
0:00:12.3]} 40. Nc6 {[%clk 0:00:09]} 40... b4 {[%clk 0:00:10.9]} 41. Rb1 {[%clk
0:00:09]} 41... b3 {[%clk 0:00:08.8]} 42. Na5 {[%clk 0:00:09.4]} 42... Rb5
{[%clk 0:00:08.6]} 43. Nxb3 {[%clk 0:00:09.8]} 43... Nc5 {[%clk 0:00:08.4]} 44.
Nd2 {[%clk 0:00:08]} 44... Rxb1 {[%clk 0:00:08.5]} 45. Nxb1 {[%clk 0:00:08.9]}
45... Nxd3 {[%clk 0:00:09.1]} 46. Kg2 {[%clk 0:00:09.5]} 46... Ke7 {[%clk
0:00:09.2]} 47. Nd2 {[%clk 0:00:09.3]} 47... Nc5 {[%clk 0:00:08.7]} 48. f4
{[%clk 0:00:08.1]} 48... f6 {[%clk 0:00:05.3]} 49. Kf3 {[%clk 0:00:08.2]} 49...
Ke6 {[%clk 0:00:05.5]} 50. Kg4 {[%clk 0:00:07.2]} 50... Na4 {[%clk 0:00:03.3]}
51. Kf3 {[%clk 0:00:05.7]} 51... Nc3 {[%clk 0:00:03.5]} 52. Nb3 {[%clk
0:00:06.1]} 52... Nb5 {[%clk 0:00:02.8]} 53. Ke2 {[%clk 0:00:05.6]} 53... Kd6
{[%clk 0:00:03.3]} 54. Kd3 {[%clk 0:00:05.9]} 54... Ke6 {[%clk 0:00:03.8]} 55.
Nxd4+ {[%clk 0:00:06.3]} 55... Nxd4 {[%clk 0:00:03.8]} 56. Kxd4 {[%clk
0:00:07.2]} 56... Kd6 {[%clk 0:00:04]} 57. f5 {[%clk 0:00:06.6]} 57... Kd7
{[%clk 0:00:03.6]} 58. Kd5 {[%clk 0:00:06.3]} 58... Ke7 {[%clk 0:00:04.2]} 59.
Kc6 {[%clk 0:00:05.8]} 59... Kd8 {[%clk 0:00:04]} 60. Kd6 {[%clk 0:00:06.1]}
60... Ke8 {[%clk 0:00:04.4]} 61. Ke6 {[%clk 0:00:07]} 1-0

[Event "*** Titled Tuesday Blitz"]
[Site "Chess.com"]
[Date "2020.05.26"]
[Round "2"]
[White "silverback96"]
[Black "Fins0905"]
[Result "1/2-1/2"]
[WhiteElo "2309"]
[BlackElo "2655"]
[TimeControl "180+1"]
[EndTime "10:19:05 PDT"]
[Termination "Game drawn by repetition"]

1. d4 {[%clk 0:03:00.8]} 1... d5 {[%clk 0:02:58.6]} 2. c4 {[%clk 0:03:00.8]}
2... c6 {[%clk 0:02:58.6]} 3. Nf3 {[%clk 0:03:00.6]} 3... Nf6 {[%clk 0:02:58.7]}
4. Nc3 {[%clk 0:03:00.8]} 4... dxc4 {[%clk 0:02:57.1]} 5. e4 {[%clk 0:02:58.3]}
5... b5 {[%clk 0:02:56.7]} 6. Be2 {[%clk 0:02:58.5]} 6... Bg4 {[%clk 0:02:52.9]}
7. h3 {[%clk 0:02:53.6]} 7... Bxf3 {[%clk 0:02:48.5]} 8. Bxf3 {[%clk 0:02:54.5]}
8... e6 {[%clk 0:02:48.9]} 9. O-O {[%clk 0:02:51.2]} 9... a6 {[%clk 0:02:38.8]}
10. d5 {[%clk 0:02:07.8]} 10... e5 {[%clk 0:02:28.9]} 11. Bg5 {[%clk 0:01:55.3]}
11... c5 {[%clk 0:02:23.8]} 12. a4 {[%clk 0:01:35.2]} 12... b4 {[%clk
0:02:19.1]} 13. Ne2 {[%clk 0:01:35]} 13... Nbd7 {[%clk 0:02:08.5]} 14. Ng3
{[%clk 0:01:34.8]} 14... Qa5 {[%clk 0:02:02.7]} 15. Be2 {[%clk 0:01:26.4]} 15...
c3 {[%clk 0:01:46.8]} 16. bxc3 {[%clk 0:01:27.3]} 16... bxc3 {[%clk 0:01:47.7]}
17. Qb3 {[%clk 0:01:20.5]} 17... Qb4 {[%clk 0:01:19.9]} 18. Qa2 {[%clk
0:01:08.8]} 18... h6 {[%clk 0:00:55.4]} 19. Rab1 {[%clk 0:00:58.7]} 19... hxg5
{[%clk 0:00:54.3]} 20. Rxb4 {[%clk 0:00:58]} 20... cxb4 {[%clk 0:00:55.2]} 21.
Rd1 {[%clk 0:00:46.1]} 21... Bc5 {[%clk 0:00:53]} 22. d6 {[%clk 0:00:42.8]}
22... O-O {[%clk 0:00:49.8]} 23. Nf5 {[%clk 0:00:40]} 23... Nxe4 {[%clk
0:00:45.5]} 24. Bd3 {[%clk 0:00:35.1]} 24... Nxf2 {[%clk 0:00:39.4]} 25. Kh2
{[%clk 0:00:26.5]} 25... g6 {[%clk 0:00:29.6]} 26. Ne7+ {[%clk 0:00:25.9]} 26...
Kg7 {[%clk 0:00:30.2]} 27. Qe2 {[%clk 0:00:25.4]} 27... Nxd1 {[%clk 0:00:26.4]}
28. Qxd1 {[%clk 0:00:25.5]} 28... Rab8 {[%clk 0:00:23.9]} 29. Bc4 {[%clk
0:00:24.8]} 29... a5 {[%clk 0:00:19.2]} 30. Qd3 {[%clk 0:00:23.9]} 30... b3
{[%clk 0:00:06]} 31. Bxf7 {[%clk 0:00:23.7]} 31... e4 {[%clk 0:00:05.4]} 32.
Qxe4 {[%clk 0:00:22.2]} 32... Bxd6+ {[%clk 0:00:05.8]} 33. g3 {[%clk 0:00:19.9]}
33... Ne5 {[%clk 0:00:06.4]} 34. Nxg6 {[%clk 0:00:16.8]} 34... Rxf7 {[%clk
0:00:06.2]} 35. Nxe5 {[%clk 0:00:16.9]} 35... Bxe5 {[%clk 0:00:05.8]} 36. Qxe5+
{[%clk 0:00:17.8]} 36... Kg6 {[%clk 0:00:06.4]} 37. Qxb8 {[%clk 0:00:17.7]}
37... b2 {[%clk 0:00:07]} 38. Qb3 {[%clk 0:00:16.6]} 38... Rf2+ {[%clk
0:00:06.8]} 39. Kg1 {[%clk 0:00:15.6]} 39... Rd2 {[%clk 0:00:07.2]} 40. Qb6+
{[%clk 0:00:14.9]} 40... Kf5 {[%clk 0:00:07.6]} 41. Qc5+ {[%clk 0:00:15.1]}
41... Ke4 {[%clk 0:00:07.9]} 42. Qc4+ {[%clk 0:00:15.1]} 42... Rd4 {[%clk
0:00:07.1]} 43. Qe2+ {[%clk 0:00:15.2]} 43... Kd5 {[%clk 0:00:07.2]} 44. Qb5+
{[%clk 0:00:12.4]} 44... Ke4 {[%clk 0:00:06.8]} 45. Qe2+ {[%clk 0:00:12.1]}
45... Kd5 {[%clk 0:00:05.8]} 46. Qb5+ {[%clk 0:00:12.2]} 46... Kd6 {[%clk
0:00:06.1]} 47. Qb6+ {[%clk 0:00:11.4]} 47... Ke5 {[%clk 0:00:06.3]} 48. Qb5+
{[%clk 0:00:11.8]} 48... Rd5 {[%clk 0:00:06.5]} 49. Qe2+ {[%clk 0:00:11.6]}
49... Kd6 {[%clk 0:00:06.9]} 50. Qc2 {[%clk 0:00:11.9]} 50... Rc5 {[%clk
0:00:04.7]} 51. Kf2 {[%clk 0:00:11.5]} 51... Rc4 {[%clk 0:00:05.1]} 52. Ke3
{[%clk 0:00:11.5]} 52... Kc5 {[%clk 0:00:05.3]} 53. Qf5+ {[%clk 0:00:09.9]}
53... Kc6 {[%clk 0:00:04.3]} 54. Qg6+ {[%clk 0:00:08.6]} 54... Kc5 {[%clk
0:00:04.6]} 55. Qf5+ {[%clk 0:00:08.5]} 55... Kc6 {[%clk 0:00:04.8]} 56. Qg6+
{[%clk 0:00:05.3]} 56... Kc5 {[%clk 0:00:05.1]} 57. Qf5+ {[%clk 0:00:05.6]}
1/2-1/2